Department Family,Date Paid,Expense Type,Expense Area,Supplier,Transaction Number,Amount,Vat Inclusive
Crown Prosecution Service ,30/11/23,Transcriptions and Translation,Other Corporate Programme Payments,Mendip Media Group Ltd Tiverton,0000000230,"73,625.00",
Crown Prosecution Service ,30/11/23,Recoverable VAT control,Balance Sheet,Mendip Media Group Ltd Tiverton,0000000230,"14,725.00",Y
Crown Prosecution Service ,06/11/23,Recoverable VAT control,Balance Sheet,Epiq Europe Ltd (Wordwave),0000001594,"5,179.12",Y
Crown Prosecution Service ,06/11/23,Transcriptions and Translation,Other Corporate Programme Payments,Epiq Europe Ltd (Wordwave),0000001594,"25,895.60",
Crown Prosecution Service ,06/11/23,Recoverable VAT control,Balance Sheet,Epiq Europe Ltd (Wordwave),0000001631,"4,878.44",Y
Crown Prosecution Service ,06/11/23,Transcriptions and Translation,Other Corporate Programme Payments,Epiq Europe Ltd (Wordwave),0000001631,"24,392.20",
Crown Prosecution Service ,17/11/23,IT non capital software licences,Other Corporate Programme Payments,Anaplan Ltd London,10044766,"570,610.32",Y
Crown Prosecution Service ,15/11/23,Crown Court Very High Cost Cases Full Scheme,SEOC Team 2,6 Kings Bench Walk- Chambers of D Fisher & D Perry,101789 JH...,"27,543.60",Y
Crown Prosecution Service ,03/11/23,Crown Court Graduated Fee Scheme,London North Complex Casework Unit,6 Kings Bench Walk- Chambers of D Fisher & D Perry,104426 DAR,"63,449.16",Y
Crown Prosecution Service ,03/11/23,Crown Court Graduated Fee Scheme,London North Complex Casework Unit,6 Kings Bench Walk- Chambers of D Fisher & D Perry,104426 LO,"31,722.72",Y
Crown Prosecution Service ,10/11/23,Crown Court Graduated Fee Scheme,London North Complex Casework Unit,6 Kings Bench Walk- Chambers of D Fisher & D Perry,104751 LM,"30,551.70",Y
Crown Prosecution Service ,02/11/23,Crown Court Graduated Fee Scheme,North West Crown Court Hub,6 Kings Bench Walk- Chambers of D Fisher & D Perry,1183662,"25,596.00",Y
Crown Prosecution Service ,27/11/23,General Professional Services,DTS Programme Project Cost,NTT Data UK Ltd London,121544770,"161,270.47",Y
Crown Prosecution Service ,27/11/23,IT services,DTS Programme Project Cost,NTT Data UK Ltd London,121544772,"40,225.43",Y
Crown Prosecution Service ,10/11/23,Crown Court Graduated Fee Scheme,Yorks and Humbs CC Legal,Kings Bench Walk Leeds,133375DBKC,"38,750.52",Y
Crown Prosecution Service ,06/11/23,Advice/PreSending Very High Cost Cases Full Scheme,RWD North Unit,St Pauls Chambers Leeds,140408 Inc 45 HWA,"37,606.80",Y
Crown Prosecution Service ,17/11/23,Advice/PreSending Very High Cost Cases Full Scheme,RWD North Unit,Red Lion Chambers (18 RLC),140408 INC45JBE,"27,871.20",Y
Crown Prosecution Service ,17/11/23,Crown Court Very High Cost Cases Full Scheme,RWD Midlands Wales Unit,Red Lion Chambers (18 RLC),158269THPoct23,"26,340.00",Y
Crown Prosecution Service ,29/11/23,Crown Court Graduated Fee Scheme,East of England Crown Court,Red Lion Chambers (18 RLC),160043AITmaintrial,"64,255.20",Y
Crown Prosecution Service ,10/11/23,Crown Court Very High Cost Cases Full Scheme,SEOC Team 2,Red Lion Chambers (18 RLC),161732NPSstage10,"28,052.80",Y
Crown Prosecution Service ,02/11/23,Advice/PreSending Very High Cost Cases Full Scheme,RWD North Unit,Red Lion Chambers (18 RLC),165563\GHJ\S7,"25,950.40",Y
Crown Prosecution Service ,30/11/23,Crown Court Graduated Fee Scheme,Thames Chiltern Crown Court Unit,Red Lion Chambers (18 RLC),165873CPXtrialfees,"39,757.50",Y
Crown Prosecution Service ,30/11/23,Crown Court Graduated Fee Scheme,East of England Crown Court,Red Lion Chambers (18 RLC),167568SS,"30,985.50",Y
Crown Prosecution Service ,02/11/23,Crown Court Graduated Fee Scheme,East of England Crown Court,Red Lion Chambers (18 RLC),168444CSHtrial,"35,010.00",Y
Crown Prosecution Service ,15/11/23,Crown Court Very High Cost Cases Full Scheme,London South Complex Casework Unit,5 SAH Services Ltd,177605-1/GR Stage 7,"31,328.40",Y
Crown Prosecution Service ,15/11/23,Crown Court Very High Cost Cases Full Scheme,London South Complex Casework Unit,5 SAH Services Ltd,177605-1/KD Stage 7,"45,459.60",Y
Crown Prosecution Service ,10/11/23,Crown Court Graduated Fee Scheme,London North Crown Court Unit,5 SAH Services Ltd,177945-3/DH,"28,163.46",Y
Crown Prosecution Service ,10/11/23,Crown Court Graduated Fee Scheme,Thames and Chiltern Complex Casework Unit,23 Essex Street Chambers,182134 - FEN2,"30,098.04",Y
Crown Prosecution Service ,27/11/23,Crown Court Very High Cost Cases Full Scheme,London South Complex Casework Unit,Foundry Chambers (9-12 Bell Yard),199783/SBO - 1,"61,659.90",Y
Crown Prosecution Service ,30/11/23,Salaries Overseas locally employed Admin,Intl Liaison Prosecutors,"Foreign, Commonwealth and Development Office",20011263,"5,099.69",
Crown Prosecution Service ,30/11/23,Telephony mobile phones and dongles,Intl Liaison Prosecutors,"Foreign, Commonwealth and Development Office",20011263,410.66,
Crown Prosecution Service ,30/11/23,Salaries Overseas locally employed Admin,Intl Liaison Prosecutors,"Foreign, Commonwealth and Development Office",20011263,"2,479.87",
Crown Prosecution Service ,30/11/23,Overseas Education School Fees: FCO approved schools,Intl Liaison Prosecutors,"Foreign, Commonwealth and Development Office",20011263,"2,189.97",
Crown Prosecution Service ,30/11/23,Telephony mobile phones and dongles,Intl Liaison Prosecutors,"Foreign, Commonwealth and Development Office",20011263,60.72,
Crown Prosecution Service ,30/11/23,Telephony mobile phones and dongles,Intl Liaison Prosecutors,"Foreign, Commonwealth and Development Office",20011263,15.48,
Crown Prosecution Service ,30/11/23,Telephony mobile phones and dongles,Intl Liaison Prosecutors,"Foreign, Commonwealth and Development Office",20011263,14.76,
Crown Prosecution Service ,30/11/23,Telephony mobile phones and dongles,Intl Liaison Prosecutors,"Foreign, Commonwealth and Development Office",20011263,5.97,
Crown Prosecution Service ,30/11/23,Telephony mobile phones and dongles,Intl Liaison Prosecutors,"Foreign, Commonwealth and Development Office",20011263,45.54,
Crown Prosecution Service ,30/11/23,Overseas Education School Fees: FCO approved schools,Intl Liaison Prosecutors,"Foreign, Commonwealth and Development Office",20011263,"19,324.73",
Crown Prosecution Service ,30/11/23,Telephony mobile phones and dongles,Intl Liaison Prosecutors,"Foreign, Commonwealth and Development Office",20011263,58.80,
Crown Prosecution Service ,30/11/23,Overseas Medical Other health care costs,Intl Liaison Prosecutors,"Foreign, Commonwealth and Development Office",20011263,364.82,
Crown Prosecution Service ,30/11/23,Telephony mobile phones and dongles,Intl Liaison Prosecutors,"Foreign, Commonwealth and Development Office",20011263,43.30,
Crown Prosecution Service ,30/11/23,Salaries Overseas locally employed Admin,Intl Liaison Prosecutors,"Foreign, Commonwealth and Development Office",20011263,584.24,
Crown Prosecution Service ,30/11/23,Overseas Subsistence,Intl Liaison Prosecutors,"Foreign, Commonwealth and Development Office",20011263,57.63,
Crown Prosecution Service ,30/11/23,Overseas Subsistence,Intl Internal Funding,"Foreign, Commonwealth and Development Office",20011263,122.31,
Crown Prosecution Service ,30/11/23,Overseas Medical Other health care costs,Intl Liaison Prosecutors,"Foreign, Commonwealth and Development Office",20011263,500.78,
Crown Prosecution Service ,30/11/23,Salaries Overseas locally employed Admin,Intl Liaison Prosecutors,"Foreign, Commonwealth and Development Office",20011263,"6,846.36",
Crown Prosecution Service ,30/11/23,Overseas Medical Other health care costs,Intl Liaison Prosecutors,"Foreign, Commonwealth and Development Office",20011263,64.96,
Crown Prosecution Service ,30/11/23,Telephony mobile phones and dongles,Intl Liaison Prosecutors,"Foreign, Commonwealth and Development Office",20011263,20.26,
Crown Prosecution Service ,16/11/23,Crown Court Very High Cost Cases Full Scheme,SEOC Team 2,Foundry Chambers (9-12 Bell Yard),201518/JM,"33,025.20",Y
Crown Prosecution Service ,27/11/23,Crown Court Graduated Fee Scheme,RWD North Unit,23 Essex Street Chambers,204972-TC,"35,009.66",Y
Crown Prosecution Service ,02/11/23,Crown Court Graduated Fee Scheme,London South Complex Casework Unit,36 Bedford Row,218787/DT/SSI,"39,437.04",Y
Crown Prosecution Service ,02/11/23,Crown Court Graduated Fee Scheme,London South Complex Casework Unit,36 Bedford Row,218787/KB/KJE/TP/NP,"58,868.16",Y
Crown Prosecution Service ,29/11/23,Crown Court Graduated Fee Scheme,East Midlands Crown Court Section,36 Bedford Row,224688/CD2,"49,145.04",Y
Crown Prosecution Service ,16/11/23,Crown Court Graduated Fee Scheme,North West Complex Casework Unit,Lincoln House Chambers,235088 PDW TR,"38,658.36",Y
Crown Prosecution Service ,10/11/23,Crown Court Graduated Fee Scheme,North West Complex Casework Unit,Lincoln House Chambers,242410 NF TR,"31,836.60",Y
Crown Prosecution Service ,27/11/23,Crown Court Very High Cost Cases Full Scheme,North West Crown Court Hub,Lincoln House Chambers,257268 JOA 1,"28,585.20",Y
Crown Prosecution Service ,06/11/23,Admin agency staff,DTS Programme Project Cost,Alexander Mann Solutions Ltd London,2892638,"44,347.39",Y
Crown Prosecution Service ,17/11/23,Crown Court Graduated Fee Scheme,West Midlands Complex Casework Unit,2 Kings Bench Walk London,294280-MW,"30,285.00",
Crown Prosecution Service ,27/11/23,Crown Court Graduated Fee Scheme,SEOC Team 2,2 Kings Bench Walk London,295942-MF,"26,599.32",
Crown Prosecution Service ,28/11/23,Crown Court Graduated Fee Scheme,London North Crown Court Unit,Park Square Barristers (No 6 and Sovereign merged),2HB/JJ/1,"30,377.52",Y
Crown Prosecution Service ,13/11/23,Recoverable VAT control,Balance Sheet,Accenture (UK) Ltd London,3003634962,"18,875.00",Y
Crown Prosecution Service ,13/11/23,IT services,DTS Programme Project Cost,Accenture (UK) Ltd London,3003634962,"94,375.00",
Crown Prosecution Service ,23/11/23,Crown Court Very High Cost Cases Full Scheme,Cymru Wales Complex Casework Unit,9 Park Place Chambers,327033 MC5,"31,033.20",Y
Crown Prosecution Service ,17/11/23,Crown Court Graduated Fee Scheme,Yorks and Humbs CC Legal,New Park Court Chambers Leeds,370013/JPKC,"61,429.80",Y
Crown Prosecution Service ,17/11/23,Crown Court Graduated Fee Scheme,Yorks and Humbs CC Legal,New Park Court Chambers Leeds,370013-2/TSS,"31,891.80",Y
Crown Prosecution Service ,08/11/23,Crown Court Graduated Fee Scheme,North East Crown Court Unit,New Park Court Chambers Leeds,371248/NLKC,"34,277.16",Y
Crown Prosecution Service ,08/11/23,Salaries Temporary Admin,Strategy and Policy,Cabinet Office RM Shared Services,3833895,"31,291.00",
Crown Prosecution Service ,17/11/23,Shared services,DID DTS Change,Cabinet Office RM Shared Services,3834270,"30,582.00",
Crown Prosecution Service ,24/11/23,Recruitment general costs,PF Senior Staffing,Cabinet Office RM Shared Services,3834799,"73,505.40",Y
Crown Prosecution Service ,07/11/23,Crown Court Graduated Fee Scheme,North West Complex Casework Unit,Dere Street Barristers,386928 JE2,"67,460.40",
Crown Prosecution Service ,17/11/23,Crown Court Graduated Fee Scheme,London South Crown Court Unit,Cornwall Street Chambers,397758/JK/,"38,667.60",Y
Crown Prosecution Service ,06/11/23,IT services,ICT Network Services,Vodafone Ltd formerly Cable and Wireless Milton Keynes,4037380,"34,335.79",Y
Crown Prosecution Service ,27/11/23,IT services,ICT Network Services,Vodafone Ltd formerly Cable and Wireless Milton Keynes,4038025,"34,335.79",Y
Crown Prosecution Service ,07/11/23,Recoverable VAT control,Balance Sheet,HM Treasury,45992,"18,871.30",Y
Crown Prosecution Service ,07/11/23,Shared services,Other Corporate Admin Payments,HM Treasury,45992,"94,356.50",
Crown Prosecution Service ,21/11/23,IT non capital software licences,Legal Reference and ICT Licenses,Oracle Corporation UK Ltd,460111427,"93,201.77",
Crown Prosecution Service ,21/11/23,Recoverable VAT control,Balance Sheet,Oracle Corporation UK Ltd,460111427,"18,640.35",Y
Crown Prosecution Service ,10/11/23,UK Hotels,Proceeds of Crime Management Team,Calder Communications Ltd Leeds,506662,"17,740.00",Y
Crown Prosecution Service ,10/11/23,Conference Organisation,Proceeds of Crime Management Team,Calder Communications Ltd Leeds,506662,"19,017.99",Y
Crown Prosecution Service ,27/11/23,Conference Organisation,Operational Business Support,Calder Communications Ltd Leeds,509087,"44,852.00",Y
Crown Prosecution Service ,28/11/23,Crown Court Very High Cost Cases Full Scheme,Yorkshire and Humberside Complex Casework Unit,Park Square Barristers (No 6 and Sovereign merged),514657/KMKC/ST6,"32,498.40",Y
Crown Prosecution Service ,14/11/23,Crown Court Very High Cost Cases Full Scheme,Yorkshire and Humberside Complex Casework Unit,Park Square Barristers (No 6 and Sovereign merged),514702/CAD ,"25,987.20",Y
Crown Prosecution Service ,13/11/23,Recoverable VAT control,Balance Sheet,EntServ UK Ltd Hampshire,6132315,"15,637.00",Y
Crown Prosecution Service ,13/11/23,IT services,DTS Programme Project Cost,EntServ UK Ltd Hampshire,6132315,"78,185.00",
Crown Prosecution Service ,13/11/23,Recoverable VAT control,Balance Sheet,EntServ UK Ltd Hampshire,6132316,"7,818.40",Y
Crown Prosecution Service ,13/11/23,IT services,DTS Programme Project Cost,EntServ UK Ltd Hampshire,6132316,"39,092.00",
Crown Prosecution Service ,24/11/23,Crown Court Graduated Fee Scheme,North East Crown Court Unit,Exchange Chambers Leeds ,639871 - CTE,"44,043.60",Y
Crown Prosecution Service ,13/11/23,IT services,Other IT costs,Lumen Technologies UK Ltd,664181595/2064272,"51,727.82",Y
Crown Prosecution Service ,08/11/23,Community Engagement,Strategy and Policy,NHS England,7000051771,"100,000.00",
Crown Prosecution Service ,20/11/23,Crown Court Graduated Fee Scheme,Mersey Cheshire RASSO Unit,Church Court Chambers,75778 BAKC TRIAL,"43,178.40",Y
Crown Prosecution Service ,17/11/23,Crown Court Graduated Fee Scheme,West Midlands Complex Casework Unit,Church Court Chambers,77223 MKKC,"28,818.00",Y
Crown Prosecution Service ,13/11/23,Crown Court Graduated Fee Scheme,West Midlands Crown Court Unit,No 5 Fountain Court Chambers,839568/PJB,"30,427.80",Y
Crown Prosecution Service ,08/11/23,Crown Court Graduated Fee Scheme,West Midlands Crown Court Unit,No 5 Fountain Court Chambers,841559/DBM,"29,825.16",Y
Crown Prosecution Service ,13/11/23,Short term leases from 2 to 12 months: IT and Equipment,Print Contract,Xerox (UK) Ltd,900232025,"21,850.00",
Crown Prosecution Service ,13/11/23,Recoverable VAT control,Balance Sheet,Xerox (UK) Ltd,900232025,"4,370.00",Y
Crown Prosecution Service ,23/11/23,Crown Court Graduated Fee Scheme,East of England Complex Casework Unit,2 Bedford Row Chambers,AC 210150,"27,308.28",
Crown Prosecution Service ,23/11/23,Crown Court Graduated Fee Scheme,London South Crown Court Unit,Nine Bedford Row (9 Bedford Row),AMA TRIAL 144205,"25,745.40",Y
Crown Prosecution Service ,02/11/23,Crown Court Graduated Fee Scheme,South East RASSO Unit,Lamb Chambers,AP2 230515,"35,458.80",Y
Crown Prosecution Service ,08/11/23,UK Hotels,PF Learning and Development General,Clarity Travel Management,CPSHQ051123,"1,801.70",Y
Crown Prosecution Service ,08/11/23,UK Hotels,DID Central Leadership Team,Clarity Travel Management,CPSHQ051123,136.80,
Crown Prosecution Service ,08/11/23,UK Hotels,Operational Change,Clarity Travel Management,CPSHQ051123,82.00,Y
Crown Prosecution Service ,08/11/23,UK Hotels,Court Business Unit,Clarity Travel Management,CPSHQ051123,103.80,Y
Crown Prosecution Service ,08/11/23,UK Hotels,CFO Estates,Clarity Travel Management,CPSHQ051123,91.40,Y
Crown Prosecution Service ,08/11/23,UK Hotels,DTUS,Clarity Travel Management,CPSHQ051123,91.00,Y
Crown Prosecution Service ,08/11/23,UK Hotels,Central Legal Training Team,Clarity Travel Management,CPSHQ051123,"2,122.99",Y
Crown Prosecution Service ,08/11/23,UK Hotels,PF HR Business Partnering,Clarity Travel Management,CPSHQ051123,142.00,Y
Crown Prosecution Service ,08/11/23,UK Hotels,Permanent Transfer Costs,Clarity Travel Management,CPSHQ051123,329.00,Y
Crown Prosecution Service ,08/11/23,UK National rail travel,PF HR Operations,Clarity Travel Management,CPSHQ051123,3.00,Y
Crown Prosecution Service ,08/11/23,UK Hotels,DID Security and Information,Clarity Travel Management,CPSHQ051123,846.96,Y
Crown Prosecution Service ,08/11/23,UK Hotels,Chief Finance Officer,Clarity Travel Management,CPSHQ051123,149.00,Y
Crown Prosecution Service ,08/11/23,UK Hotels,Director of Legal Services,Clarity Travel Management,CPSHQ051123,168.00,Y
Crown Prosecution Service ,08/11/23,UK Hotels,Operational Business Support,Clarity Travel Management,CPSHQ051123,173.00,Y
Crown Prosecution Service ,08/11/23,UK Hotels,DID Operational Process,Clarity Travel Management,CPSHQ051123,297.95,Y
Crown Prosecution Service ,08/11/23,UK Hotels,Central Operational Training,Clarity Travel Management,CPSHQ051123,371.96,Y
Crown Prosecution Service ,08/11/23,UK Hotels,DID DTS Technology,Clarity Travel Management,CPSHQ051123,632.00,Y
Crown Prosecution Service ,08/11/23,UK Hotels,DID DTS Change,Clarity Travel Management,CPSHQ051123,"1,439.58",Y
Crown Prosecution Service ,08/11/23,UK National rail travel,PF HR Business Partnering,Clarity Travel Management,CPSHQ051123,892.50,
Crown Prosecution Service ,08/11/23,UK National rail travel,CFO Estates,Clarity Travel Management,CPSHQ051123,693.10,
Crown Prosecution Service ,08/11/23,UK National rail travel,PF People and Business Change,Clarity Travel Management,CPSHQ051123,626.20,
Crown Prosecution Service ,08/11/23,UK National rail travel,Strategy and Policy,Clarity Travel Management,CPSHQ051123,747.90,
Crown Prosecution Service ,08/11/23,UK National rail travel,Director of Legal Services,Clarity Travel Management,CPSHQ051123,789.70,
Crown Prosecution Service ,08/11/23,UK National rail travel,CFO Commercial,Clarity Travel Management,CPSHQ051123,750.35,
Crown Prosecution Service ,08/11/23,UK National rail travel,Press Office,Clarity Travel Management,CPSHQ051123,106.40,
Crown Prosecution Service ,08/11/23,UK National rail travel,DID Central Leadership Team,Clarity Travel Management,CPSHQ051123,635.60,
Crown Prosecution Service ,08/11/23,UK National rail travel,Chief Finance Officer,Clarity Travel Management,CPSHQ051123,476.80,
Crown Prosecution Service ,08/11/23,UK National rail travel,Permanent Transfer Costs,Clarity Travel Management,CPSHQ051123,134.30,
Crown Prosecution Service ,08/11/23,UK National rail travel,PF Learning and Development General,Clarity Travel Management,CPSHQ051123,"1,381.10",
Crown Prosecution Service ,08/11/23,UK National rail travel,Central Legal Training Team,Clarity Travel Management,CPSHQ051123,422.80,
Crown Prosecution Service ,08/11/23,UK National rail travel,Operational Performance,Clarity Travel Management,CPSHQ051123,256.90,
Crown Prosecution Service ,08/11/23,UK National rail travel,Court Business Unit,Clarity Travel Management,CPSHQ051123,113.80,
Crown Prosecution Service ,08/11/23,UK National rail travel,Central Operational Training,Clarity Travel Management,CPSHQ051123,489.60,
Crown Prosecution Service ,08/11/23,UK National rail travel,Operational Business Support,Clarity Travel Management,CPSHQ051123,"4,027.60",
Crown Prosecution Service ,08/11/23,UK National rail travel,DTUS,Clarity Travel Management,CPSHQ051123,274.00,
Crown Prosecution Service ,08/11/23,UK National rail travel,PF HR Operations,Clarity Travel Management,CPSHQ051123,"1,381.70",
Crown Prosecution Service ,08/11/23,UK National rail travel,Private Office,Clarity Travel Management,CPSHQ051123,429.00,
Crown Prosecution Service ,08/11/23,UK National rail travel,DID DTS Change,Clarity Travel Management,CPSHQ051123,"2,177.00",
Crown Prosecution Service ,08/11/23,UK National rail travel,DID Security and Information,Clarity Travel Management,CPSHQ051123,"1,017.80",
Crown Prosecution Service ,08/11/23,UK National rail travel,PF Resourcing,Clarity Travel Management,CPSHQ051123,28.20,
Crown Prosecution Service ,08/11/23,UK National rail travel,DID DTS Technology,Clarity Travel Management,CPSHQ051123,309.70,
Crown Prosecution Service ,08/11/23,UK National rail travel,DID Operational Process,Clarity Travel Management,CPSHQ051123,592.80,
Crown Prosecution Service ,08/11/23,UK National rail travel,Victim Transformation Prog,Clarity Travel Management,CPSHQ051123,183.60,
Crown Prosecution Service ,08/11/23,UK National rail travel,Operational Change,Clarity Travel Management,CPSHQ051123,377.90,
Crown Prosecution Service ,08/11/23,UK National rail travel,Compliance and Assurance,Clarity Travel Management,CPSHQ051123,157.40,
Crown Prosecution Service ,08/11/23,UK National rail travel,Corporate Communication,Clarity Travel Management,CPSHQ051123,732.10,
Crown Prosecution Service ,08/11/23,UK Hotels,Strategy and Policy,Clarity Travel Management,CPSHQ051123,96.89,Y
Crown Prosecution Service ,27/11/23,UK National rail travel,DID Operational Process,Clarity Travel Management,CPSHQ121123,814.60,
Crown Prosecution Service ,27/11/23,UK National rail travel,CFO Risk and Assurance,Clarity Travel Management,CPSHQ121123,"1,903.60",
Crown Prosecution Service ,27/11/23,UK National rail travel,PF People and Business Change,Clarity Travel Management,CPSHQ121123,"1,593.90",
Crown Prosecution Service ,27/11/23,UK National rail travel,Corporate Communication,Clarity Travel Management,CPSHQ121123,"1,138.30",
Crown Prosecution Service ,27/11/23,UK National rail travel,DTUS,Clarity Travel Management,CPSHQ121123,24.10,
Crown Prosecution Service ,27/11/23,UK National rail travel,DID Central Leadership Team,Clarity Travel Management,CPSHQ121123,794.80,
Crown Prosecution Service ,27/11/23,UK National rail travel,Court Business Unit,Clarity Travel Management,CPSHQ121123,65.30,
Crown Prosecution Service ,27/11/23,UK National rail travel,PF HR Business Partnering,Clarity Travel Management,CPSHQ121123,611.40,
Crown Prosecution Service ,27/11/23,UK National rail travel,DID DTS Change,Clarity Travel Management,CPSHQ121123,"1,002.50",
Crown Prosecution Service ,27/11/23,UK National rail travel,DID DTS Technology,Clarity Travel Management,CPSHQ121123,"1,423.75",
Crown Prosecution Service ,27/11/23,UK National rail travel,CFO Strategic Financial Planning,Clarity Travel Management,CPSHQ121123,319.00,
Crown Prosecution Service ,27/11/23,UK National rail travel,Central Operational Training,Clarity Travel Management,CPSHQ121123,445.80,
Crown Prosecution Service ,27/11/23,UK National rail travel,Strategy and Policy,Clarity Travel Management,CPSHQ121123,"1,045.10",
Crown Prosecution Service ,27/11/23,UK National rail travel,Victim Transformation Prog,Clarity Travel Management,CPSHQ121123,978.00,
Crown Prosecution Service ,27/11/23,UK National rail travel,Director of Legal Services,Clarity Travel Management,CPSHQ121123,"1,019.10",
Crown Prosecution Service ,27/11/23,UK National rail travel,Central Legal Training Team,Clarity Travel Management,CPSHQ121123,797.70,
Crown Prosecution Service ,27/11/23,UK National rail travel,Operational Performance,Clarity Travel Management,CPSHQ121123,47.00,
Crown Prosecution Service ,27/11/23,UK Hotels,Strategy and Policy,Clarity Travel Management,CPSHQ121123,580.48,Y
Crown Prosecution Service ,27/11/23,UK Hotels,Central Legal Training Team,Clarity Travel Management,CPSHQ121123,"2,425.92",Y
Crown Prosecution Service ,27/11/23,UK Hotels,DID Security and Information,Clarity Travel Management,CPSHQ121123,"1,275.07",Y
Crown Prosecution Service ,27/11/23,UK Hotels,Court Business Unit,Clarity Travel Management,CPSHQ121123,735.87,Y
Crown Prosecution Service ,27/11/23,UK Hotels,Private Office,Clarity Travel Management,CPSHQ121123,161.98,Y
Crown Prosecution Service ,27/11/23,UK Hotels,DID Operational Process,Clarity Travel Management,CPSHQ121123,517.33,Y
Crown Prosecution Service ,27/11/23,UK Hotels,DTUS,Clarity Travel Management,CPSHQ121123,307.93,Y
Crown Prosecution Service ,27/11/23,UK Hotels,Central Operational Training,Clarity Travel Management,CPSHQ121123,221.96,Y
Crown Prosecution Service ,27/11/23,UK Hotels,CFO Commercial,Clarity Travel Management,CPSHQ121123,90.98,Y
Crown Prosecution Service ,27/11/23,UK Hotels,Compliance and Assurance,Clarity Travel Management,CPSHQ121123,212.89,Y
Crown Prosecution Service ,27/11/23,UK Hotels,CFO Finance Operations,Clarity Travel Management,CPSHQ121123,141.96,Y
Crown Prosecution Service ,27/11/23,UK Hotels,CFO Risk and Assurance,Clarity Travel Management,CPSHQ121123,202.95,Y
Crown Prosecution Service ,27/11/23,UK Hotels,DID Central Leadership Team,Clarity Travel Management,CPSHQ121123,126.69,Y
Crown Prosecution Service ,27/11/23,UK Hotels,Chief Finance Officer,Clarity Travel Management,CPSHQ121123,155.98,Y
Crown Prosecution Service ,27/11/23,UK Hotels,Permanent Transfer Costs,Clarity Travel Management,CPSHQ121123,901.88,Y
Crown Prosecution Service ,27/11/23,UK Hotels,PF People and Business Change,Clarity Travel Management,CPSHQ121123,"1,076.70",Y
Crown Prosecution Service ,27/11/23,UK Hotels,Permanent Transfer Costs,Clarity Travel Management,CPSHQ121123,95.98,Y
Crown Prosecution Service ,27/11/23,UK Hotels,CFO Estates,Clarity Travel Management,CPSHQ121123,80.99,Y
Crown Prosecution Service ,27/11/23,UK Hotels,PF Learning and Development General,Clarity Travel Management,CPSHQ121123,937.88,Y
Crown Prosecution Service ,27/11/23,UK Hotels,DID DTS Change,Clarity Travel Management,CPSHQ121123,"1,621.77",Y
Crown Prosecution Service ,27/11/23,UK Hotels,DID DTS Technology,Clarity Travel Management,CPSHQ121123,"6,528.68",Y
Crown Prosecution Service ,27/11/23,UK National rail travel,Private Office,Clarity Travel Management,CPSHQ121123,190.00,
Crown Prosecution Service ,27/11/23,UK National rail travel,Operational Change,Clarity Travel Management,CPSHQ121123,"1,443.20",
Crown Prosecution Service ,27/11/23,UK National rail travel,PF Resourcing,Clarity Travel Management,CPSHQ121123,898.70,
Crown Prosecution Service ,27/11/23,UK National rail travel,DID Security and Information,Clarity Travel Management,CPSHQ121123,"1,756.90",
Crown Prosecution Service ,27/11/23,UK National rail travel,Compliance and Assurance,Clarity Travel Management,CPSHQ121123,701.30,
Crown Prosecution Service ,27/11/23,UK National rail travel,PF HR Operations,Clarity Travel Management,CPSHQ121123,612.50,
Crown Prosecution Service ,27/11/23,UK National rail travel,PF Learning and Development General,Clarity Travel Management,CPSHQ121123,"2,369.50",
Crown Prosecution Service ,27/11/23,UK National rail travel,Operational Business Support,Clarity Travel Management,CPSHQ121123,"3,341.30",
Crown Prosecution Service ,27/11/23,UK National rail travel,CFO Estates,Clarity Travel Management,CPSHQ121123,85.40,
Crown Prosecution Service ,27/11/23,UK National rail travel,Permanent Transfer Costs,Clarity Travel Management,CPSHQ121123,"2,365.20",
Crown Prosecution Service ,27/11/23,UK National rail travel,DID DTS Change,Clarity Travel Management,CPSHQ191123,"2,352.80",
Crown Prosecution Service ,27/11/23,UK National rail travel,Press Office,Clarity Travel Management,CPSHQ191123,51.05,
Crown Prosecution Service ,27/11/23,UK National rail travel,Permanent Transfer Costs,Clarity Travel Management,CPSHQ191123,"1,054.70",
Crown Prosecution Service ,27/11/23,UK National rail travel,Court Business Unit,Clarity Travel Management,CPSHQ191123,249.00,
Crown Prosecution Service ,27/11/23,UK National rail travel,PF HR Operations,Clarity Travel Management,CPSHQ191123,292.20,
Crown Prosecution Service ,27/11/23,UK National rail travel,Operational Change,Clarity Travel Management,CPSHQ191123,491.10,
Crown Prosecution Service ,27/11/23,UK National rail travel,DID Central Leadership Team,Clarity Travel Management,CPSHQ191123,481.30,
Crown Prosecution Service ,27/11/23,UK National rail travel,Victim Transformation Prog,Clarity Travel Management,CPSHQ191123,216.10,
Crown Prosecution Service ,27/11/23,UK National rail travel,PF People and Business Change,Clarity Travel Management,CPSHQ191123,"1,254.70",
Crown Prosecution Service ,27/11/23,UK National rail travel,DID Operational Process,Clarity Travel Management,CPSHQ191123,394.30,
Crown Prosecution Service ,27/11/23,UK National rail travel,Operational Performance,Clarity Travel Management,CPSHQ191123,347.20,
Crown Prosecution Service ,27/11/23,UK National rail travel,DID DTS Technology,Clarity Travel Management,CPSHQ191123,916.50,
Crown Prosecution Service ,27/11/23,UK National rail travel,CFO Commercial,Clarity Travel Management,CPSHQ191123,109.00,
Crown Prosecution Service ,27/11/23,UK National rail travel,CFO Estates,Clarity Travel Management,CPSHQ191123,345.10,
Crown Prosecution Service ,27/11/23,UK National rail travel,Strategy and Policy,Clarity Travel Management,CPSHQ191123,851.40,
Crown Prosecution Service ,27/11/23,UK National rail travel,PF HR Business Management,Clarity Travel Management,CPSHQ191123,73.40,
Crown Prosecution Service ,27/11/23,UK Hotels,PF Learning and Development General,Clarity Travel Management,CPSHQ191123,201.75,Y
Crown Prosecution Service ,27/11/23,UK Hotels,Permanent Transfer Costs,Clarity Travel Management,CPSHQ191123,309.72,Y
Crown Prosecution Service ,27/11/23,UK Hotels,CFO Finance Operations,Clarity Travel Management,CPSHQ191123,303.00,Y
Crown Prosecution Service ,27/11/23,UK Hotels,Director of Legal Services,Clarity Travel Management,CPSHQ191123,309.00,Y
Crown Prosecution Service ,27/11/23,UK Hotels,DID DTS Change,Clarity Travel Management,CPSHQ191123,"2,071.06",Y
Crown Prosecution Service ,27/11/23,UK Hotels,PF HR Business Partnering,Clarity Travel Management,CPSHQ191123,80.00,Y
Crown Prosecution Service ,27/11/23,UK Hotels,PF HR Business Management,Clarity Travel Management,CPSHQ191123,65.34,Y
Crown Prosecution Service ,27/11/23,UK Hotels,Corporate Communication,Clarity Travel Management,CPSHQ191123,138.00,Y
Crown Prosecution Service ,27/11/23,UK Hotels,Victim Transformation Prog,Clarity Travel Management,CPSHQ191123,565.89,Y
Crown Prosecution Service ,27/11/23,UK Hotels,DID DTS Technology,Clarity Travel Management,CPSHQ191123,844.50,Y
Crown Prosecution Service ,27/11/23,UK Hotels,Operational Business Support,Clarity Travel Management,CPSHQ191123,"6,419.27",Y
Crown Prosecution Service ,27/11/23,UK Hotels,PF People and Business Change,Clarity Travel Management,CPSHQ191123,834.50,Y
Crown Prosecution Service ,27/11/23,UK Hotels,DID Security and Information,Clarity Travel Management,CPSHQ191123,380.07,Y
Crown Prosecution Service ,27/11/23,UK National rail travel,PF Learning and Development General,Clarity Travel Management,CPSHQ191123,"1,473.30",
Crown Prosecution Service ,27/11/23,UK National rail travel,Corporate Communication,Clarity Travel Management,CPSHQ191123,"2,498.40",
Crown Prosecution Service ,27/11/23,UK National rail travel,Central Legal Training Team,Clarity Travel Management,CPSHQ191123,58.10,
Crown Prosecution Service ,27/11/23,UK National rail travel,DTUS,Clarity Travel Management,CPSHQ191123,245.70,
Crown Prosecution Service ,27/11/23,UK National rail travel,PF Analytics and Workforce Plan,Clarity Travel Management,CPSHQ191123,357.40,
Crown Prosecution Service ,27/11/23,UK National rail travel,Chief Finance Officer,Clarity Travel Management,CPSHQ191123,202.25,
Crown Prosecution Service ,27/11/23,UK National rail travel,PF Resourcing,Clarity Travel Management,CPSHQ191123,219.60,
Crown Prosecution Service ,27/11/23,UK National rail travel,Private Office,Clarity Travel Management,CPSHQ191123,170.50,
Crown Prosecution Service ,27/11/23,UK National rail travel,DID Security and Information,Clarity Travel Management,CPSHQ191123,796.10,
Crown Prosecution Service ,27/11/23,UK National rail travel,Operational Business Support,Clarity Travel Management,CPSHQ191123,"1,135.00",
Crown Prosecution Service ,27/11/23,UK National rail travel,PF HR Business Partnering,Clarity Travel Management,CPSHQ191123,"1,474.90",
Crown Prosecution Service ,29/11/23,UK Hotels,Strategy and Policy,Clarity Travel Management,CPSHQ261123,86.99,Y
Crown Prosecution Service ,29/11/23,UK National rail travel,CFO Finance Operations,Clarity Travel Management,CPSHQ261123,340.30,
Crown Prosecution Service ,29/11/23,UK Hotels,DID DTS Change,Clarity Travel Management,CPSHQ261123,697.02,Y
Crown Prosecution Service ,29/11/23,UK Hotels,Director of Legal Services,Clarity Travel Management,CPSHQ261123,309.00,Y
Crown Prosecution Service ,29/11/23,UK Hotels,Central Legal Training Team,Clarity Travel Management,CPSHQ261123,"1,169.49",Y
Crown Prosecution Service ,29/11/23,UK Hotels,DID Security and Information,Clarity Travel Management,CPSHQ261123,"1,126.85",Y
Crown Prosecution Service ,29/11/23,Overseas Hotels,Central Legal Training Team,Clarity Travel Management,CPSHQ261123,500.98,Y
Crown Prosecution Service ,29/11/23,UK Hotels,Corporate Communication,Clarity Travel Management,CPSHQ261123,233.91,Y
Crown Prosecution Service ,29/11/23,UK Hotels,Operational Change,Clarity Travel Management,CPSHQ261123,"1,584.67",Y
Crown Prosecution Service ,29/11/23,UK Hotels,Operational Business Support,Clarity Travel Management,CPSHQ261123,857.46,Y
Crown Prosecution Service ,29/11/23,UK Hotels,Private Office,Clarity Travel Management,CPSHQ261123,200.10,Y
Crown Prosecution Service ,29/11/23,UK Hotels,Chief Finance Officer,Clarity Travel Management,CPSHQ261123,132.00,Y
Crown Prosecution Service ,29/11/23,UK Hotels,Operational Performance,Clarity Travel Management,CPSHQ261123,104.01,Y
Crown Prosecution Service ,29/11/23,UK Hotels,Permanent Transfer Costs,Clarity Travel Management,CPSHQ261123,"1,189.92",Y
Crown Prosecution Service ,29/11/23,UK Hotels,DID DTS Technology,Clarity Travel Management,CPSHQ261123,651.99,Y
Crown Prosecution Service ,29/11/23,UK Hotels,CFO Finance Operations,Clarity Travel Management,CPSHQ261123,151.00,Y
Crown Prosecution Service ,29/11/23,UK National rail travel,DID DTS Change,Clarity Travel Management,CPSHQ261123,"1,916.40",
Crown Prosecution Service ,29/11/23,UK National rail travel,PF Learning and Development General,Clarity Travel Management,CPSHQ261123,976.80,
Crown Prosecution Service ,29/11/23,UK National rail travel,Victim Transformation Prog,Clarity Travel Management,CPSHQ261123,51.00,
Crown Prosecution Service ,29/11/23,UK National rail travel,Press Office,Clarity Travel Management,CPSHQ261123,843.45,
Crown Prosecution Service ,29/11/23,UK National rail travel,Operational Performance,Clarity Travel Management,CPSHQ261123,397.00,
Crown Prosecution Service ,29/11/23,UK National rail travel,Private Office,Clarity Travel Management,CPSHQ261123,"1,292.90",
Crown Prosecution Service ,29/11/23,UK National rail travel,PF People and Business Change,Clarity Travel Management,CPSHQ261123,522.50,
Crown Prosecution Service ,29/11/23,UK National rail travel,DID Security and Information,Clarity Travel Management,CPSHQ261123,"1,780.60",
Crown Prosecution Service ,29/11/23,UK National rail travel,PF HR Business Management,Clarity Travel Management,CPSHQ261123,406.00,
Crown Prosecution Service ,29/11/23,UK National rail travel,Compliance and Assurance,Clarity Travel Management,CPSHQ261123,358.20,
Crown Prosecution Service ,29/11/23,UK National rail travel,CFO Commercial,Clarity Travel Management,CPSHQ261123,261.40,
Crown Prosecution Service ,29/11/23,UK National rail travel,Strategy and Policy,Clarity Travel Management,CPSHQ261123,"1,806.20",
Crown Prosecution Service ,29/11/23,UK National rail travel,PF HR Business Partnering,Clarity Travel Management,CPSHQ261123,630.70,
Crown Prosecution Service ,29/11/23,UK National rail travel,DID DTS Technology,Clarity Travel Management,CPSHQ261123,452.90,
Crown Prosecution Service ,29/11/23,UK National rail travel,DID Central Leadership Team,Clarity Travel Management,CPSHQ261123,669.30,
Crown Prosecution Service ,29/11/23,UK National rail travel,Central Legal Training Team,Clarity Travel Management,CPSHQ261123,770.60,
Crown Prosecution Service ,29/11/23,UK National rail travel,Central Operational Training,Clarity Travel Management,CPSHQ261123,86.25,
Crown Prosecution Service ,29/11/23,UK National rail travel,Court Business Unit,Clarity Travel Management,CPSHQ261123,"1,327.30",
Crown Prosecution Service ,29/11/23,UK National rail travel,Operational Change,Clarity Travel Management,CPSHQ261123,981.90,
Crown Prosecution Service ,29/11/23,UK National rail travel,DTUS,Clarity Travel Management,CPSHQ261123,90.50,
Crown Prosecution Service ,29/11/23,UK National rail travel,Director of Legal Services,Clarity Travel Management,CPSHQ261123,978.00,
Crown Prosecution Service ,29/11/23,UK National rail travel,Permanent Transfer Costs,Clarity Travel Management,CPSHQ261123,535.60,
Crown Prosecution Service ,29/11/23,UK National rail travel,CFO Estates,Clarity Travel Management,CPSHQ261123,425.30,
Crown Prosecution Service ,29/11/23,UK National rail travel,Corporate Communication,Clarity Travel Management,CPSHQ261123,299.10,
Crown Prosecution Service ,29/11/23,UK National rail travel,Chief Finance Officer,Clarity Travel Management,CPSHQ261123,753.00,
Crown Prosecution Service ,29/11/23,UK National rail travel,Operational Business Support,Clarity Travel Management,CPSHQ261123,296.80,
Crown Prosecution Service ,07/11/23,UK National rail travel,DID Central Leadership Team,Clarity Travel Management,CPSHQ291023,135.60,
Crown Prosecution Service ,07/11/23,UK Hotels,DID DTS Technology,Clarity Travel Management,CPSHQ291023,850.11,Y
Crown Prosecution Service ,07/11/23,UK Hotels,Strategy and Policy,Clarity Travel Management,CPSHQ291023,"1,461.42",Y
Crown Prosecution Service ,07/11/23,UK Hotels,PF HR Systems and Information,Clarity Travel Management,CPSHQ291023,388.00,Y
Crown Prosecution Service ,07/11/23,UK Hotels,PF People and Business Change,Clarity Travel Management,CPSHQ291023,752.36,Y
Crown Prosecution Service ,07/11/23,UK Hotels,PF Resourcing,Clarity Travel Management,CPSHQ291023,443.50,Y
Crown Prosecution Service ,07/11/23,UK Hotels,DID Operational Process,Clarity Travel Management,CPSHQ291023,833.80,Y
Crown Prosecution Service ,07/11/23,Overseas Hotels,Operational Business Support,Clarity Travel Management,CPSHQ291023,173.01,Y
Crown Prosecution Service ,07/11/23,UK Hotels,CFO Fin System Change and Costings,Clarity Travel Management,CPSHQ291023,73.00,Y
Crown Prosecution Service ,07/11/23,UK Hotels,DID DTS Change,Clarity Travel Management,CPSHQ291023,"2,933.62",Y
Crown Prosecution Service ,07/11/23,UK Hotels,Chief Finance Officer,Clarity Travel Management,CPSHQ291023,294.00,Y
Crown Prosecution Service ,07/11/23,UK Hotels,Central Legal Training Team,Clarity Travel Management,CPSHQ291023,"2,613.52",Y
Crown Prosecution Service ,07/11/23,UK Hotels,Director of Legal Services,Clarity Travel Management,CPSHQ291023,598.81,Y
Crown Prosecution Service ,07/11/23,UK Hotels,DID Security and Information,Clarity Travel Management,CPSHQ291023,"2,296.89",Y
Crown Prosecution Service ,07/11/23,UK Hotels,Operational Business Support,Clarity Travel Management,CPSHQ291023,658.54,Y
Crown Prosecution Service ,07/11/23,UK Hotels,CFO Financial Reporting,Clarity Travel Management,CPSHQ291023,126.00,Y
Crown Prosecution Service ,07/11/23,UK Hotels,DID Central Leadership Team,Clarity Travel Management,CPSHQ291023,565.60,Y
Crown Prosecution Service ,07/11/23,UK Hotels,CFO Estates,Clarity Travel Management,CPSHQ291023,283.48,Y
Crown Prosecution Service ,07/11/23,UK Hotels,Private Office,Clarity Travel Management,CPSHQ291023,392.22,Y
Crown Prosecution Service ,07/11/23,UK Hotels,CFO Commercial,Clarity Travel Management,CPSHQ291023,"1,378.71",Y
Crown Prosecution Service ,07/11/23,UK Hotels,Operational Change,Clarity Travel Management,CPSHQ291023,390.04,Y
Crown Prosecution Service ,07/11/23,UK Hotels,PF HR Business Management,Clarity Travel Management,CPSHQ291023,531.07,Y
Crown Prosecution Service ,07/11/23,UK Hotels,DTUS,Clarity Travel Management,CPSHQ291023,421.70,Y
Crown Prosecution Service ,07/11/23,UK Hotels,Central Operational Training,Clarity Travel Management,CPSHQ291023,643.01,Y
Crown Prosecution Service ,07/11/23,UK Hotels,Court Business Unit,Clarity Travel Management,CPSHQ291023,871.59,Y
Crown Prosecution Service ,07/11/23,UK Hotels,PF Learning and Development General,Clarity Travel Management,CPSHQ291023,"1,245.98",Y
Crown Prosecution Service ,07/11/23,UK Hotels,CFO Finance Operations,Clarity Travel Management,CPSHQ291023,77.01,Y
Crown Prosecution Service ,07/11/23,UK Hotels,PF Analytics and Workforce Plan,Clarity Travel Management,CPSHQ291023,304.02,Y
Crown Prosecution Service ,07/11/23,UK Hotels,Corporate Communication,Clarity Travel Management,CPSHQ291023,363.00,Y
Crown Prosecution Service ,07/11/23,UK Hotels,Permanent Transfer Costs,Clarity Travel Management,CPSHQ291023,590.60,Y
Crown Prosecution Service ,07/11/23,UK National rail travel,Chief Finance Officer,Clarity Travel Management,CPSHQ291023,"1,228.30",
Crown Prosecution Service ,07/11/23,UK National rail travel,Permanent Transfer Costs,Clarity Travel Management,CPSHQ291023,115.70,
Crown Prosecution Service ,07/11/23,UK National rail travel,PF HR Business Partnering,Clarity Travel Management,CPSHQ291023,537.60,
Crown Prosecution Service ,07/11/23,UK National rail travel,Central Legal Training Team,Clarity Travel Management,CPSHQ291023,965.40,
Crown Prosecution Service ,07/11/23,UK National rail travel,PF HR Operations,Clarity Travel Management,CPSHQ291023,562.10,
Crown Prosecution Service ,07/11/23,UK National rail travel,CFO Fin System Change and Costings,Clarity Travel Management,CPSHQ291023,371.90,
Crown Prosecution Service ,07/11/23,UK National rail travel,CFO Financial Reporting,Clarity Travel Management,CPSHQ291023,62.50,
Crown Prosecution Service ,07/11/23,UK National rail travel,PF Resourcing,Clarity Travel Management,CPSHQ291023,229.50,
Crown Prosecution Service ,07/11/23,UK National rail travel,CFO Estates,Clarity Travel Management,CPSHQ291023,279.80,
Crown Prosecution Service ,07/11/23,UK National rail travel,DID Security and Information,Clarity Travel Management,CPSHQ291023,"1,000.45",
Crown Prosecution Service ,07/11/23,UK National rail travel,DID DTS Change,Clarity Travel Management,CPSHQ291023,"1,871.80",
Crown Prosecution Service ,07/11/23,UK National rail travel,Operational Performance,Clarity Travel Management,CPSHQ291023,562.15,
Crown Prosecution Service ,07/11/23,UK National rail travel,CFO Commercial,Clarity Travel Management,CPSHQ291023,430.70,
Crown Prosecution Service ,07/11/23,UK National rail travel,PF People and Business Change,Clarity Travel Management,CPSHQ291023,213.90,
Crown Prosecution Service ,07/11/23,UK National rail travel,Compliance and Assurance,Clarity Travel Management,CPSHQ291023,534.60,
Crown Prosecution Service ,07/11/23,UK National rail travel,Corporate Communication,Clarity Travel Management,CPSHQ291023,"1,176.60",
Crown Prosecution Service ,07/11/23,UK National rail travel,DID Operational Process,Clarity Travel Management,CPSHQ291023,868.00,
Crown Prosecution Service ,07/11/23,UK National rail travel,DTUS,Clarity Travel Management,CPSHQ291023,184.40,
Crown Prosecution Service ,07/11/23,UK National rail travel,DID DTS Technology,Clarity Travel Management,CPSHQ291023,"1,791.95",
Crown Prosecution Service ,07/11/23,UK National rail travel,PF HR Business Management,Clarity Travel Management,CPSHQ291023,67.50,
Crown Prosecution Service ,07/11/23,UK National rail travel,PF Learning and Development General,Clarity Travel Management,CPSHQ291023,497.30,
Crown Prosecution Service ,07/11/23,UK National rail travel,Operational Change,Clarity Travel Management,CPSHQ291023,460.40,
Crown Prosecution Service ,07/11/23,UK National rail travel,Central Operational Training,Clarity Travel Management,CPSHQ291023,356.90,
Crown Prosecution Service ,07/11/23,UK National rail travel,DID DTS Change,Clarity Travel Management,CPSHQ291023,17.70,
Crown Prosecution Service ,07/11/23,UK National rail travel,Strategy and Policy,Clarity Travel Management,CPSHQ291023,"1,929.10",
Crown Prosecution Service ,07/11/23,UK National rail travel,Operational Business Support,Clarity Travel Management,CPSHQ291023,"2,599.10",
Crown Prosecution Service ,07/11/23,UK National rail travel,Court Business Unit,Clarity Travel Management,CPSHQ291023,"1,257.30",
Crown Prosecution Service ,07/11/23,UK Hotels,DID Central Leadership Team,Clarity Travel Management,CPSHQ291023,136.80,
Crown Prosecution Service ,07/11/23,UK National rail travel,Director of Legal Services,Clarity Travel Management,CPSHQ291023,296.60,
Crown Prosecution Service ,10/11/23,Crown Court Graduated Fee Scheme,SEOC Team 1,2 Harcourt Buildings,DH-116763,"57,318.00",Y
Crown Prosecution Service ,07/11/23,Crown Court Graduated Fee Scheme,London South Complex Casework Unit,QEB Hollis Whiteman Chambers,DSP 109553,"25,957.32",Y
Crown Prosecution Service ,02/11/23,Crown Court Graduated Fee Scheme,London North Crown Court Unit,9 Kings Bench Walk,FE51655T1.1,"76,790.10",Y
Crown Prosecution Service ,06/11/23,Recoverable VAT control,Balance Sheet,CGI IT UK Ltd,GB014115517,"18,583.11",Y
Crown Prosecution Service ,06/11/23,IT services,Service Desk Contract,CGI IT UK Ltd,GB014115517,"92,915.56",
Crown Prosecution Service ,20/11/23,Recoverable VAT control,Balance Sheet,CGI IT UK Ltd,GB014117580,"215,958.02",Y
Crown Prosecution Service ,20/11/23,IT services,Apps and Hosting Contract,CGI IT UK Ltd,GB014117580,"1,079,790.09",
Crown Prosecution Service ,27/11/23,IT services,Service Desk Contract,CGI IT UK Ltd,GB014118168,"88,239.98",
Crown Prosecution Service ,27/11/23,Recoverable VAT control,Balance Sheet,CGI IT UK Ltd,GB014118168,"17,648.00",Y
Crown Prosecution Service ,13/11/23,Recoverable VAT control,Balance Sheet,FlyForm LTD Cardiff,INV-11585,"4,879.21",Y
Crown Prosecution Service ,13/11/23,IT services,DTS Programme Project Cost,FlyForm LTD Cardiff,INV-11585,"24,395.99",
Crown Prosecution Service ,23/11/23,Presentational Equipment,Special Crime Unit London,Evidential Ltd Manchester,INV-16875,"51,502.20",Y
Crown Prosecution Service ,07/11/23,Other publicity and media costs,Press Office,Vuelio London,INV865475,"68,400.00",Y
Crown Prosecution Service ,22/11/23,IT non capital software licences,Legal Reference and ICT Licenses,Outsystems LTD London,INVGB202300281,"238,908.00",Y
Crown Prosecution Service ,08/11/23,Crown Court Graduated Fee Scheme,London North Complex Casework Unit,Nine Bedford Row (9 Bedford Row),JB 144423 TRIAL,"52,298.40",Y
Crown Prosecution Service ,02/11/23,Crown Court Graduated Fee Scheme,London North Complex Casework Unit,QEB Hollis Whiteman Chambers,JE 110209 B,"72,844.48",Y
Crown Prosecution Service ,29/11/23,Crown Court Graduated Fee Scheme,London North Complex Casework Unit,QEB Hollis Whiteman Chambers,JL 113239 C,"47,092.80",Y
Crown Prosecution Service ,07/11/23,Crown Court Graduated Fee Scheme,London North Complex Casework Unit,5 King's Bench Walk,LO 174301 Trial,"26,458.80",Y
Crown Prosecution Service ,29/11/23,Crown Court Graduated Fee Scheme,London North Crown Court Unit,QEB Hollis Whiteman Chambers,NK 112211 A,"38,540.64",Y
Crown Prosecution Service ,28/11/23,Recoverable VAT control,Balance Sheet,AVR Transcription Ltd Bolton,OCT23-CPS,"19,543.04",Y
Crown Prosecution Service ,28/11/23,Transcriptions and Translation,Other Corporate Programme Payments,AVR Transcription Ltd Bolton,OCT23-CPS,"97,715.22",
Crown Prosecution Service ,15/11/23,Crown Court Graduated Fee Scheme,SEOC Team 1,Cloth Fair Chambers,PAR_G8029425,"38,540.64",Y
Crown Prosecution Service ,29/11/23,Crown Court Graduated Fee Scheme,London North Crown Court Unit,QEB Hollis Whiteman Chambers,PRA 112211 A,"76,582.08",Y
Crown Prosecution Service ,13/11/23,General Professional Services,DTS Programme Project Cost,Bloom Procurement Services Ltd Gateshead,SIN047101,"54,366.31",Y
Crown Prosecution Service ,22/11/23,Crown Court Graduated Fee Scheme,East of England Crown Court,4 Breams Buildings,SPO 324480 21/11,"34,179.00",Y
Crown Prosecution Service ,14/11/23,Crown Court Graduated Fee Scheme,West Midlands RASSO Unit,2 Bedford Row Chambers,TJA 211395,"27,614.40",
Crown Prosecution Service ,14/11/23,Crown Court Very High Cost Cases Full Scheme,RWD Midlands Wales Unit,QEB Hollis Whiteman Chambers,WB 111389 F,"29,652.00",Y
Crown Prosecution Service ,27/11/23,Crown Court Graduated Fee Scheme,London North Complex Casework Unit,3 Raymond Buildings,WEJ/254274/1,"45,236.64",Y
Crown Prosecution Service ,13/11/23,Crown Court Graduated Fee Scheme,London North Crown Court Unit,Nine Bedford Row (9 Bedford Row),WN 144515,"40,833.60",Y
Crown Prosecution Service ,06/11/23,Crown Court Graduated Fee Scheme,London North Complex Casework Unit,QEB Hollis Whiteman Chambers,ZJ 112430 a,"29,061.30",Y
